[Event "Romanian Women Championship 2024"]
[Site "Eforie Nord"]
[Date "2024.02.29"]
[Round "7.10"]
[White "Sava, Ana-Maria"]
[Black "Sunea, Sara Maria"]
[Result "0-1"]
[ECO "B50"]
[WhiteElo "1916"]
[BlackElo "1561"]
[Annotator "NA RC"]
[PlyCount "96"]
[EventDate "2024.02.24"]
[EventType "swiss"]
[EventCountry "ROU"]
[SourceTitle "playchess.com"]
[Source "ChessBase"]
[SourceQuality "1"]
[TimeControl "40/5400+30:900+30"]

1. e4 {[%emt 0:00:02]} c5 {[%emt 0:00:07]} 2. Nf3 {[%emt 0:00:11]} Nc6 {[%emt 0:00:10]} 3. b3 {[%emt 0:00:09]} e5 {[%emt 0:00:05]} 4. Bb2 {[%emt 0:00:23]} d6 {[%emt 0:00:06]} 5. Nc3 {[%emt 0:03:19]} g6 {[%emt 0:00:37]} 6. Bc4 {[%emt 0:01:33]} Bg7 {[%emt 0:00:24]} 7. h3 {[%emt 0:01:27]} Nge7 {[%emt 0:00:57]} 8. O-O {[%emt 0:00:48]} O-O {[%emt 0:00:40]} 9. d3 {[%emt 0:03:15]} h6 {[%emt 0:01:37]} 10. Nd5 {[%emt 0:01:28]} Kh7 {[%emt 0:03:35]} 11. Nh2 {[%emt 0:05:46]} f5 {[%emt 0:04:39]} 12. exf5 {[%emt 0:00:28]} gxf5 {[%emt 0:04:28]} 13. f4 {[%emt 0:03:38]} a6 {[%emt 0:04:36]} 14. a4 {[%emt 0:00:10]} Rb8 {[%emt 0:01:08]} 15. fxe5 {[%emt 0:08:57]} dxe5 {[%emt 0:07:18]} 16. Nxe7 {[%emt 0:03:13]} Nxe7 {[%emt 0:02:14]} 17. a5 {[%emt 0:00:09]} Bd7 {[%emt 0:04:53]} 18. Qe1 {[%emt 0:01:28]} Qc7 {[%emt 0:01:34]} 19. Nf3 {[%emt 0:01:05]} Ng6 {[%emt 0:02:30]} 20. Rd1 {[%emt 0:03:27]} Rbe8 {[%emt 0:01:49]} 21. Qd2 {[%emt 0:02:07]} Be6 {[%emt 0:04:43]} 22. Bxe6 {[%emt 0:02:34]} Rxe6 {[%emt 0:00:02]} 23. Rfe1 {[%emt 0:06:37]} Nf4 {[%emt 0:06:19]} 24. Kh1 {[%emt 0:03:53]} Rg8 {[%emt 0:02:28]} 25. Nh4 {[%emt 0:01:52]} Bf6 {[%emt 0:08:13]} 26. Nxf5 {[%emt 0:02:06]} Qc6 {[%emt 0:08:12]} 27. Re4 {[%emt 0:00:47]} Rxg2 {[%emt 0:03:52]} 28. Qxg2 {[%emt 0:01:22]} Nxg2 {[%emt 0:01:11]} 29. Kxg2 {[%emt 0:00:02]} Re8 {[%emt 0:02:48]} 30. Kf2 {[%emt 0:03:40]} Qe6 {[%emt 0:01:14]} 31. Ng3 {[%emt 0:01:40]} Bh4 {[%emt 0:04:47]} 32. Kg2 {[%emt 0:06:06]} Bxg3 {[%emt 0:02:11]} 33. Kxg3 {[%emt 0:00:16]} Rg8+ {[%emt 0:00:14]} 34. Rg4 {[%emt 0:00:49]} h5 {[%emt 0:04:37]} 35. Rxg8 {[%emt 0:01:11]} Qxg8+ {[%emt 0:00:01]} 36. Kh2 {[%emt 0:02:45]} Qf7 {[%emt 0:00:41]} 37. Rg1 {[%emt 0:00:50]} Qf4+ {[%emt 0:00:28]} 38. Kh1 {[%emt 0:00:13]} e4 {[%emt 0:03:29]} 39. dxe4 {[%emt 0:02:51]} Qxe4+ {[%emt 0:00:08]} 40. Rg2 {[%emt 0:00:00]} Qe1+ {[%emt 0:00:00]} 41. Kh2 {[%emt 0:00:30]} Qxa5 {[%emt 0:02:50]} 42. Rg7+ {[%emt 0:03:16]} Kh6 {[%emt 0:00:33]} 43. Rg3 {[%emt 0:05:17]} Qd2+ {[%emt 0:01:21]} 44. Rg2 {[%emt 0:00:11]} Qd6+ {[%emt 0:00:44]} 45. Kh1 {[%emt 0:00:39]} b5 {[%emt 0:01:38]} 46. Bc1+ {[%emt 0:00:11]} Kh7 {[%emt 0:00:12]} 47. Be3 {[%emt 0:00:22]} Qe5 {[%emt 0:01:46]} 48. Bd2 {[%emt 0:00:37]} Qf5 {[%emt 0:01:03]} 0-1

[Event "Romanian Women Championship 2024"]
[Site "Eforie Nord"]
[Date "2024.02.29"]
[Round "7.11"]
[White "Aldea, Maria-Antonia"]
[Black "Paraschiv, Petronela-Alexandra"]
[Result "1/2-1/2"]
[ECO "E18"]
[WhiteElo "1726"]
[BlackElo "1875"]
[Annotator "NA RC"]
[PlyCount "69"]
[EventDate "2024.02.24"]
[EventType "swiss"]
[EventCountry "ROU"]
[SourceTitle "playchess.com"]
[Source "ChessBase"]
[SourceQuality "1"]
[TimeControl "40/5400+30:900+30"]

1. c4 {[%emt 0:00:03]} Nf6 {[%emt 0:00:07]} 2. Nc3 {[%emt 0:00:24]} e6 {[%emt 0:01:08]} 3. Nf3 {[%emt 0:00:24]} b6 {[%emt 0:00:37]} 4. g3 {[%emt 0:01:55]} Bb7 {[%emt 0:00:07]} 5. Bg2 {[%emt 0:00:04]} Be7 {[%emt 0:01:10]} 6. d4 {[%emt 0:02:03]} d5 {[%emt 0:01:28]} 7. O-O {[%emt 0:00:33]} O-O {[%emt 0:00:28]} 8. cxd5 {[%emt 0:01:59]} exd5 {[%emt 0:03:15]} 9. Qb3 {[%emt 0:01:35]} Nc6 {[%emt 0:02:59]} 10. Bf4 {[%emt 0:02:26]} Na5 {[%emt 0:02:03]} 11. Qc2 {[%emt 0:01:10]} Nc4 {[%emt 0:05:23]} 12. Rad1 {[%emt 0:08:29]} Nd6 {[%emt 0:14:55]} 13. Ne5 {[%emt 0:08:04]} Nfe4 {[%emt 0:11:59]} 14. Nxe4 {[%emt 0:02:01]} dxe4 {[%emt 0:10:35]} 15. Nc6 {[%emt 0:05:42]} Qe8 {[%emt 0:13:44]} 16. Bxd6 {[%emt 0:02:26]} Bxd6 {[%emt 0:01:13]} 17. Bxe4 {[%emt 0:02:04]} f5 {[%emt 0:02:23]} 18. Bf3 {[%emt 0:03:10]} Rf6 {[%emt 0:00:57]} 19. Ne5 {[%emt 0:05:51]} Bxf3 {[%emt 0:03:21]} 20. Nxf3 {[%emt 0:00:12]} f4 {[%emt 0:02:07]} 21. Kg2 {[%emt 0:04:02]} Rh6 {[%emt 0:03:16]} 22. e4 {[%emt 0:04:36]} fxe3 {[%emt 0:01:35]} 23. Qb3+ {[%emt 0:00:24]} Qe6 {[%emt 0:02:58]} 24. fxe3 {[%emt 0:06:01]} Qxb3 {[%emt 0:00:07]} 25. axb3 {[%emt 0:00:02]} Re8 {[%emt 0:00:21]} 26. Rfe1 {[%emt 0:02:47]} Rhe6 {[%emt 0:00:24]} 27. Rd3 {[%emt 0:01:23]} h6 {[%emt 0:00:54]} 28. Re2 {[%emt 0:03:16]} Bb4 {[%emt 0:04:46]} 29. Ng1 {[%emt 0:02:35]} g5 {[%emt 0:00:57]} 30. Nh3 {[%emt 0:00:32]} Bf8 {[%emt 0:02:33]} 31. Nf2 {[%emt 0:01:03]} Bg7 {[%emt 0:01:34]} 32. e4 {[%emt 0:04:04]} Rd6 {[%emt 0:00:16]} 33. e5 {[%emt 0:05:34]} Rd5 {[%emt 0:00:32]} 34. Kf3 {[%emt 0:02:58]} c5 {[%emt 0:00:46]} 35. dxc5 {[%emt 0:02:20]} 1/2-1/2

[Event "Romanian Women Championship 2024"]
[Site "Eforie Nord"]
[Date "2024.02.29"]
[Round "7.12"]
[White "Ciocirlan, Bianca-Alexandra"]
[Black "Bira, Andrada-Paraschiva"]
[Result "1/2-1/2"]
[ECO "B33"]
[WhiteElo "1542"]
[BlackElo "1590"]
[Annotator "NA RC"]
[PlyCount "130"]
[EventDate "2024.02.24"]
[EventType "swiss"]
[EventCountry "ROU"]
[SourceTitle "playchess.com"]
[Source "ChessBase"]
[SourceQuality "1"]
[TimeControl "40/5400+30:900+30"]

1. e4 {[%emt 0:00:02]} c5 {[%emt 0:00:08]} 2. Nf3 {[%emt 0:00:05]} Nc6 {[%emt 0:00:10]} 3. d4 {[%emt 0:00:04]} cxd4 {[%emt 0:00:12]} 4. Nxd4 {[%emt 0:00:13]} Qb6 {[%emt 0:00:13]} 5. Nb3 {[%emt 0:00:17]} e6 {[%emt 0:00:30]} 6. Nc3 {[%emt 0:02:04]} a6 {[%emt 0:00:15]} 7. Be3 {[%emt 0:00:47]} Qc7 {[%emt 0:00:15]} 8. Bd3 {[%emt 0:01:35]} Be7 {[%emt 0:00:37]} 9. O-O {[%emt 0:02:08]} Nf6 {[%emt 0:02:06]} 10. f4 {[%emt 0:01:17]} d6 {[%emt 0:00:29]} 11. Qf3 {[%emt 0:01:29]} O-O {[%emt 0:02:29]} 12. Rae1 {[%emt 0:01:30]} b5 {[%emt 0:00:25]} 13. e5 {[%emt 0:01:36]} dxe5 {[%emt 0:06:26]} 14. fxe5 {[%emt 0:00:18]} Nxe5 {[%emt 0:01:37]} 15. Qxa8 {[%emt 0:26:52]} Bb7 {[%emt 0:00:11]} 16. Qa7 {[%emt 0:01:31]} Neg4 {[%emt 0:04:15]} 17. Bf4 {[%emt 0:04:48]} Qc6 {[%emt 0:00:19]} 18. Re2 {[%emt 0:03:01]} Bd8 {[%emt 0:00:12]} 19. Be3 {[%emt 0:04:39]} Nxe3 {[%emt 0:00:29]} 20. Qxe3 {[%emt 0:00:11]} Bb6 {[%emt 0:00:11]} 21. Nd4 {[%emt 0:01:17]} Qd6 {[%emt 0:00:42]} 22. Kh1 {[%emt 0:06:28]} Bxd4 {[%emt 0:03:28]} 23. Qh3 {[%emt 0:02:52]} h6 {[%emt 0:02:14]} 24. Nd1 {[%emt 0:04:14]} Rd8 {[%emt 0:06:38]} 25. Rd2 {[%emt 0:01:41]} Qc7 {[%emt 0:00:39]} 26. c3 {[%emt 0:01:09]} Be5 {[%emt 0:04:45]} 27. Nf2 {[%emt 0:02:34]} Bf4 {[%emt 0:11:57]} 28. Rdd1 {[%emt 0:00:55]} Bg5 {[%emt 0:01:13]} 29. Ng4 {[%emt 0:29:23]} Nd5 {[%emt 0:00:54]} 30. Be4 {[%emt 0:00:00]} Qc4 {[%emt 0:11:28]} 31. Bxd5 {[%emt 0:00:00]} Rxd5 {[%emt 0:02:19]} 32. Qg3 {[%emt 0:00:00]} Rxd1 {[%emt 0:21:39]} 33. Rxd1 {[%emt 0:00:00]} Qe2 {[%emt 0:00:30]} 34. Re1 {[%emt 0:00:00]} Qd2 {[%emt 0:01:09]} 35. Rf1 {[%emt 0:00:00]} Qe2 {[%emt 0:00:18]} 36. Qf2 {[%emt 0:00:00]} Qxf2 {[%emt 0:02:02]} 37. Rxf2 {[%emt 0:00:00]} Bd5 {[%emt 0:00:21]} 38. b3 {[%emt 0:00:17]} f5 {[%emt 0:00:11]} 39. Ne5 {[%emt 0:01:00]} Bf6 {[%emt 0:00:11]} 40. c4 {[%emt 0:00:00]} Be4 {[%emt 0:00:00]} 41. Nd7 {[%emt 0:01:33]} Be7 {[%emt 0:03:03]} 42. cxb5 {[%emt 0:00:21]} axb5 {[%emt 0:00:10]} 43. Rd2 {[%emt 0:01:46]} Bb4 {[%emt 0:01:40]} 44. Rd4 {[%emt 0:01:01]} Bc3 {[%emt 0:00:20]} 45. Rd6 {[%emt 0:00:38]} Kf7 {[%emt 0:00:17]} 46. Nc5 {[%emt 0:00:54]} Bd5 {[%emt 0:01:24]} 47. Nd3 {[%emt 0:00:39]} Be4 {[%emt 0:00:13]} 48. Nf2 {[%emt 0:03:43]} Bd5 {[%emt 0:00:09]} 49. a4 {[%emt 0:01:14]} bxa4 {[%emt 0:00:27]} 50. bxa4 {[%emt 0:00:02]} Ke7 {[%emt 0:00:17]} 51. Ra6 {[%emt 0:00:42]} Bd4 {[%emt 0:00:14]} 52. Nh3 {[%emt 0:01:51]} g5 {[%emt 0:00:10]} 53. Ng1 {[%emt 0:00:59]} g4 {[%emt 0:00:25]} 54. Ra5 {[%emt 0:01:47]} Bc4 {[%emt 0:00:44]} 55. h3 {[%emt 0:01:13]} h5 {[%emt 0:00:12]} 56. hxg4 {[%emt 0:01:05]} hxg4 {[%emt 0:00:08]} 57. Ra8 {[%emt 0:02:04]} Kf6 {[%emt 0:02:29]} 58. a5 {[%emt 0:00:39]} Kg5 {[%emt 0:00:21]} 59. Rc8 {[%emt 0:01:15]} Bd5 {[%emt 0:00:09]} 60. Ne2 {[%emt 0:00:30]} Be5 {[%emt 0:03:27]} 61. a6 {[%emt 0:02:39]} f4 {[%emt 0:00:37]} 62. Nxf4 {[%emt 0:02:58]} Kxf4 {[%emt 0:01:08]} 63. a7 {[%emt 0:00:05]} Bd4 {[%emt 0:00:58]} 64. a8=Q {[%emt 0:00:06]} Bxa8 {[%emt 0:00:05]} 65. Rxa8 {[%emt 0:00:02]} e5 {[%emt 0:00:14]} 1/2-1/2

[Event "Romanian Women Championship 2024"]
[Site "Eforie Nord"]
[Date "2024.03.01"]
[Round "8.1"]
[White "Sandu, Mihaela"]
[Black "Lehaci, Miruna-Daria"]
[Result "1/2-1/2"]
[ECO "C70"]
[WhiteElo "2265"]
[BlackElo "2227"]
[Annotator "TA"]
[PlyCount "126"]
[EventDate "2024.02.24"]
[EventType "swiss"]
[EventCountry "ROU"]
[SourceTitle "playchess.com"]
[Source "ChessBase"]
[SourceQuality "1"]
[TimeControl "40/5400+30:900+30"]

{[%evp 34,126,0,9,10,0,6,5,86,85,92,97,90,69,61,53,80,81,163,136,197,177,195,-100,-102,-105,-44,-36,-47,-40,-10,-8,-9,-22,19,0,18,20,43,44,41,37,67,0,33,56,48,40,91,-8,83,76,126,108,215,215,374,348,376,367,1622,1478,1222,1127,791,8,8,8,8,8,8,8,8,8,8,8,8,8,8,8,8,8,8,8,8,8,8,8,8,8,8,8,8,8,8]} 1. e4 {[%emt 0:00:04]} e5 {[%emt 0:00:06]} 2. Nf3 {[%emt 0:00:49]} Nc6 {[%emt 0:00:06]} 3. Bb5 {[%emt 0:02:11]} a6 {[%emt 0:00:19]} 4. Ba4 {[%emt 0:00:05]} Nge7 {[%emt 0:00:10]} 5. Nc3 {[%emt 0:08:23]} Ng6 {[%emt 0:01:19]} 6. a3 {[%emt 0:15:32] C70: Spanische Partie (Abweichung im 4. Zug).} Nd4 $146 {[%emt 0:10:53]} ({Predecessor:} 6... Bc5 7. d3 d6 8. Nd5 O-O 9. c3 Nce7 10. Nxe7+ Qxe7 11. O-O Bb6 12. Bb3 Be6 13. a4 {½-½ Mamedov,R (2646)-Ponkratov,P (2577) Airthings Masters Play In rapid 2023 (8)}) 7. Nxd4 {[%emt 0:06:00]} exd4 {[%emt 0:00:06]} 8. Ne2 {[%emt 0:00:28]} b5 {[%emt 0:15:00]} 9. Bb3 {[%emt 0:02:33]} Bb7 {[%emt 0:00:22]} 10. d3 {[%emt 0:04:19]} d5 {[%emt 0:04:48]} 11. Ng3 {[%emt 0:12:32]} dxe4 {[%emt 0:04:05]} 12. O-O {[%emt 0:04:04]} Be7 {[%emt 0:04:32]} 13. Nxe4 {[%emt 0:00:23]} O-O {[%emt 0:05:07]} 14. Qh5 {[%emt 0:02:31]} Kh8 {[%emt 0:08:37]} 15. Bd2 {[%emt 0:08:52]} f5 {[%emt 0:09:45]} 16. Ng5 {[%emt 0:05:44]} Bxg5 {[%emt 0:00:13]} 17. Qxg5 {[%emt 0:00:21]} Qxg5 {[%emt 0:19:53]} 18. Bxg5 {[%emt 0:00:21]} f4 {[%emt 0:01:21]} 19. Rfe1 {[%emt 0:01:16]} Rf5 $1 {[%emt 0:06:26]} 20. Be7 {[%emt 0:05:37]} Re8 {[%emt 0:02:51]} (20... a5 $11 {hält das Gleichgewicht.}) 21. Bb4 $16 {[%emt 0:05:01]} Rd8 {[%emt 0:00:43]} (21... Rxe1+ 22. Rxe1 h5 23. Re8+ Kh7 24. f3) 22. f3 $1 {[%emt 0:04:03]} c5 {[%emt 0:02:09]} 23. Ba5 {[%emt 0:00:05]} Rdf8 {[%emt 0:00:23]} 24. Re2 {[%emt 0:06:58]} Rg5 {[%emt 0:00:27]} 25. Kf1 {[%emt 0:00:21]} Nh4 {[%emt 0:00:45]} (25... c4 $16 26. Ba2 Bd5) 26. Rae1 {[%emt 0:00:17]} Bc6 {[%emt 0:01:38]} (26... Bxf3 $16 27. gxf3 Nxf3) 27. Re6 {[%emt 0:00:36]} Nxg2 {[%emt 0:00:38]} 28. R6e5 $2 {[%emt 0:02:57]} (28. Rxc6 Ne3+ 29. Rxe3 fxe3 $17) (28. h4 $1 $18 {[%cal Rh4g5]} Nxh4 (28... Nxe1 $2 29. hxg5 Nxf3 30. Rxc6 $18) 29. Rxc6) 28... Rg6 {[%emt 0:00:24]} 29. Bf7 {[%emt 0:00:16]} Ne3+ {[%emt 0:00:49]} (29... Rxf7 30. Re8+ Bxe8 31. Rxe8+) (29... Nxe1 $17 30. Bxg6 Nxc2 (30... Nxf3 31. Rh5 $17) 31. Rxc5 Ne3+ (31... Bxf3 32. Rxc2 hxg6 33. h4 $17) (31... hxg6 32. Rxc6 Ne3+ 33. Kg1 $17) 32. Kf2 Nd1+ 33. Ke1 Bxf3 (33... Nxb2 34. Rxc6 hxg6 35. Kd2 $17)) 30. R1xe3 $1 $15 {[%emt 0:00:15]} fxe3 {[%emt 0:00:13]} 31. Bxg6 {[%emt 0:00:37]} Rxf3+ {[%emt 0:00:05]} 32. Ke1 {[%emt 0:00:42]} hxg6 {[%emt 0:00:04]} 33. Rxc5 {[%emt 0:00:13]} Rf6 {[%emt 0:00:30]} 34. c3 {[%emt 0:00:34]} Bf3 {[%emt 0:01:06]} 35. cxd4 {[%emt 0:00:28]} Bh5 {[%emt 0:00:29]} 36. Re5 {[%emt 0:00:29]} e2 {[%emt 0:00:16]} 37. Kd2 {[%emt 0:01:37]} (37. Re8+ Kh7 $17) 37... Rf2 {[%emt 0:00:36]} 38. Kc3 {[%emt 0:00:23]} (38. d5 $14) 38... Rxh2 {[%emt 0:01:30]} 39. d5 {[%emt 0:00:12]} Bg4 {[%emt 0:00:34]} 40. d6 {[%emt 0:00:00]} Rh5 {[%emt 0:00:00]} (40... Kg8 $1 $14) 41. Re8+ $1 $16 {[%emt 0:01:45]} Kh7 {[%emt 0:00:51] [#]} 42. Kd4 $1 {[%emt 0:01:03]} Rh3 {[%emt 0:04:53]} ({Günstiger ist} 42... Bd7 43. Rxe2 Kg8) 43. Re7 {[%emt 0:06:36]} Bf5 {[%emt 0:02:46]} (43... Rh5 $16) 44. Rxe2 $18 {[%emt 0:00:07]} Rxd3+ $2 {[%emt 0:00:04] [#]} (44... g5 45. Kc5 (45. Ke5 Bd7 $16) 45... g4) 45. Kc5 $1 $18 {[%emt 0:00:04]} g5 {[%emt 0:01:31]} 46. Rd2 {[%emt 0:02:46]} Rxd2 $2 {[%emt 0:03:34]} (46... Rf3 47. d7 Bxd7) 47. Bxd2 $18 {[%emt 0:00:05]} g4 {[%emt 0:00:20]} 48. Kb6 {[%emt 0:04:46]} Kg6 {[%emt 0:00:36]} 49. Kxa6 $2 {[%emt 0:00:05]} (49. Kc7 $18 g3 50. Be1) 49... Bd7 $1 $11 {[%emt 0:00:42]} 50. Kb6 {[%emt 0:00:04]} Kf5 {[%emt 0:00:39]} 51. Kc7 {[%emt 0:00:08]} Ke6 {[%emt 0:00:29]} 52. Bf4 {[%emt 0:00:05]} g5 {[%emt 0:00:54]} 53. Bg3 {[%emt 0:01:47]} Be8 $1 {[%emt 0:00:07]} 54. Be1 {[%emt 0:00:16]} (54. b3 $5) 54... Bd7 {[%emt 0:00:08]} 55. Bf2 {[%emt 0:01:39]} Be8 {[%emt 0:00:05]} 56. Bg3 {[%emt 0:00:08]} Bd7 {[%emt 0:00:03]} 57. b3 {[%emt 0:01:30]} Be8 {[%emt 0:00:06]} 58. Bh2 {[%emt 0:00:36]} Bd7 {[%emt 0:00:03]} 59. Kb6 {[%emt 0:00:23]} Be8 {[%emt 0:01:41]} 60. Kc5 {[%emt 0:00:06]} Bd7 {[%emt 0:00:36]} 61. Kb4 {[%emt 0:01:45]} Kd5 {[%emt 0:02:57]} 62. a4 {[%emt 0:00:48]} bxa4 {[%emt 0:00:08]} 63. bxa4 {[%emt 0:00:04]} Kc6 {[%emt 0:00:12]} (63... g3 64. Bxg3 Be6 (64... Kc6 65. Bh2 $14) 65. a5) 1/2-1/2

[Event "Romanian Women Championship 2024"]
[Site "Eforie Nord"]
[Date "2024.03.01"]
[Round "8.2"]
[White "Cosma, Elena-Luminita"]
[Black "Ciolacu, Alessia-Mihaela"]
[Result "1/2-1/2"]
[ECO "A13"]
[WhiteElo "2236"]
[BlackElo "2175"]
[Annotator "TA"]
[PlyCount "80"]
[EventDate "2024.02.24"]
[EventType "swiss"]
[EventCountry "ROU"]
[SourceTitle "playchess.com"]
[Source "ChessBase"]
[SourceQuality "1"]
[TimeControl "40/5400+30:900+30"]

{[%evp 14,80,22,17,14,0,1,0,0,2,8,-20,24,7,47,35,55,5,64,18,5,7,36,15,71,85,78,66,107,96,125,83,76,85,77,73,77,85,128,0,50,80,88,41,95,81,150,14,8,9,12,10,14,24,8,8,176,0,0,0,0,0,0,0,0,0,13,0,8]} 1. Nf3 {[%emt 0:00:04]} Nf6 {[%emt 0:00:42]} 2. g3 {[%emt 0:00:07]} d5 {[%emt 0:00:12]} 3. Bg2 {[%emt 0:00:06]} e6 {[%emt 0:00:17]} 4. O-O {[%emt 0:00:25]} c5 {[%emt 0:00:16]} 5. c4 {[%emt 0:00:19]} d4 {[%emt 0:00:17]} 6. e3 {[%emt 0:00:08]} Nc6 {[%emt 0:00:35]} 7. exd4 {[%emt 0:00:06]} cxd4 {[%emt 0:00:06]} 8. d3 {[%emt 0:00:11]} Bd6 {[%emt 0:01:18]} 9. Na3 {[%emt 0:10:55]} O-O {[%emt 0:12:10]} 10. Nc2 {[%emt 0:05:03]} e5 {[%emt 0:00:34]} 11. b4 {[%emt 0:02:36]} Re8 {[%emt 0:08:18]} 12. c5 {[%emt 0:25:09]} Bc7 {[%emt 0:02:31]} 13. Bg5 {[%emt 0:00:57]} h6 {[%emt 0:02:27]} 14. Bxf6 {[%emt 0:00:28]} Qxf6 {[%emt 0:00:02]} 15. Nd2 {[%emt 0:00:15]} (15. b5 $1 $14 Ne7 16. Nd2) 15... Bf5 {[%emt 0:02:54]} (15... Qe7 $11) 16. Ne4 {[%emt 0:00:58]} (16. b5 $14 {was preferrable.} Na5 17. Nb4) 16... Qg6 $11 {[%emt 0:04:05]} 17. Qd2 {[%emt 0:06:20]} Ne7 {[%emt 0:06:19]} (17... Rab8 $5) 18. Na3 {[%emt 0:03:18]} Qa6 {[%emt 0:09:30] Wards off Nb5} (18... Bd7 $1 $11) 19. Nc4 $16 {[%emt 0:00:50]} Bxe4 {[%emt 0:00:57]} 20. Bxe4 {[%emt 0:00:55]} f5 {[%emt 0:00:15][%cal Bf7f5,Bf5f4,Bf4g3][%mdl 32]} 21. Bg2 {[%emt 0:01:27]} e4 {[%emt 0:06:22]} 22. Rfc1 {[%emt 0:07:58]} e3 {[%emt 0:24:08]} 23. fxe3 {[%emt 0:03:30]} dxe3 {[%emt 0:00:06]} 24. Qxe3 {[%emt 0:03:43]} f4 {[%emt 0:03:01]} 25. Qe4 {[%emt 0:11:03] Nd6 would now be deadly.} (25. Qf3 {simplifies} Rad8 26. Qxb7 Qxb7 27. Bxb7 fxg3 28. hxg3 Nd5 29. Nd6) 25... fxg3 {[%emt 0:02:39]} 26. h3 {[%emt 0:00:37]} (26. Qxb7 $6 gxh2+ 27. Kh1 Qxb7 28. Bxb7 Rab8 $11) (26. Rf1 $1 $16) 26... Rab8 {[%emt 0:09:28]} (26... Rad8 $11 27. Qxb7 Qxb7 28. Bxb7 Ng6) 27. Re1 $14 {[%emt 0:06:33]} Qb5 {[%emt 0:01:22] Black is weak on the light squares} 28. Kh1 {[%emt 0:04:20]} (28. a3 $16) 28... Kh8 {[%emt 0:00:53] [#]} ({Black should play} 28... Qxb4 $14 29. Nd6 Qxe4 30. Bxe4 Rf8) 29. a3 $1 $16 {[%emt 0:02:16]} (29. Nd6 $6 Bxd6 30. cxd6 Nf5 $15) 29... a5 {[%emt 0:00:39] [#]} (29... Ng8 $142 30. Qd5 Rf8) 30. Qg4 {[%emt 0:01:45] White is much more active.} (30. Nd6 $6 Bxd6 31. cxd6 Nf5 $11) (30. Qe6 $1 $16 {[%cal Re6f7] Black must now prevent Qf7.} axb4 31. Qf7 Qxc5 32. axb4) 30... axb4 $11 {[%emt 0:00:34]} (30... Rbd8 31. Rf1 Rf8 32. Qe4 $18) 31. axb4 {[%emt 0:00:48]} Qxb4 {[%emt 0:01:10] [#]} 32. Nd6 $1 {[%emt 0:00:54]} Qxg4 {[%emt 0:00:57]} 33. hxg4 {[%emt 0:00:03]} Bxd6 {[%emt 0:00:21]} 34. cxd6 {[%emt 0:00:06]} Nc6 {[%emt 0:01:05]} (34... Ng8 $1 $11 {and Black is okay.}) 35. Bxc6 $2 {[%emt 0:01:53]} (35. d7 $18 Red8 36. Rab1 Rxd7 37. Bxc6 Rxd3 38. Rxb7 (38. Bxb7 g6 $16)) 35... bxc6 $18 {[%emt 0:00:13] KRR-KRR. The position is equal.} ({But not} 35... Rxe1+ $2 36. Rxe1 bxc6 37. d7 $18) 36. d7 {[%emt 0:00:32]} Red8 {[%emt 0:00:22]} 37. Ra7 {[%emt 0:00:20]} Kg8 {[%emt 0:00:34]} 38. Re6 {[%emt 0:01:32]} c5 {[%emt 0:01:12]} 39. Rc6 {[%emt 0:00:15]} Rf8 {[%emt 0:00:33]} 40. Kg2 {[%emt 0:00:00][%mdl 1024] White has compensation.} Rb2+ {[%emt 0:00:00] Weighted Error Value: White=0.29 (precise) /Black=0.26 (precise) .  Loses game:     	---       	Black=1      Missed win:     	White=1     	---        Mistake:       	White=5     	Black=5      Inaccurate:     	White=2     	Black=6      OK:         	White=9     	Black=11     Best:        	White=2     	Black=1      Strong:       	White=1     	---} 1/2-1/2

[Event "Romanian Women Championship 2024"]
[Site "Eforie Nord"]
[Date "2024.03.01"]
[Round "8.3"]
[White "Peptan, Corina-Isabela"]
[Black "Iordache, Alexia-Andreea"]
[Result "1-0"]
[ECO "A32"]
[WhiteElo "2314"]
[BlackElo "1769"]
[Annotator "TA"]
[PlyCount "47"]
[EventDate "2024.02.24"]
[EventType "swiss"]
[EventCountry "ROU"]
[SourceTitle "playchess.com"]
[Source "ChessBase"]
[SourceQuality "1"]
[TimeControl "40/5400+30:900+30"]

{[%evp 10,47,15,5,20,26,27,33,42,40,37,40,39,39,33,25,24,0,85,92,77,89,95,67,100,100,183,188,179,186,460,440,476,469,698,702,695,647,1789,1615]} 1. d4 {[%emt 0:02:10]} Nf6 {[%emt 0:00:05]} 2. Nf3 {[%emt 0:00:10]} e6 {[%emt 0:00:15]} 3. c4 {[%emt 0:00:18]} c5 {[%emt 0:00:08]} 4. Nc3 {[%emt 0:01:54]} cxd4 {[%emt 0:00:46]} 5. Nxd4 {[%emt 0:00:04]} d5 {[%emt 0:00:11]} 6. e3 {[%emt 0:00:58]} Be7 {[%emt 0:01:19]} 7. cxd5 {[%emt 0:00:21]} Nxd5 {[%emt 0:02:58]} 8. Bb5+ {[%emt 0:00:48]} Bd7 {[%emt 0:01:26] White is slightly better.} 9. Nxd5 {[%emt 0:00:25]} exd5 {[%emt 0:00:17]} 10. O-O {[%emt 0:01:58]} Nc6 {[%emt 0:02:07]} 11. Ne2 {[%emt 0:06:58][%cal Bd4e2,Be2f4,Bf4e6][%mdl 32]} Be6 {[%emt 0:10:38]} 12. Nf4 {[%emt 0:03:36]} O-O {[%emt 0:01:47]} 13. e4 {[%emt 0:07:57]} d4 {[%emt 0:06:05]} (13... dxe4 $11 14. Nxe6 fxe6) 14. Nxe6 $16 {[%emt 0:14:52]} fxe6 {[%emt 0:00:03]} 15. Qb3 {[%emt 0:00:06]} Qc8 {[%emt 0:17:24]} 16. Bc4 {[%emt 0:06:46][%cal Bb5c4,Bc4d3,Bd3e4][%mdl 32]} Rf6 {[%emt 0:02:11] [#]} 17. Bd2 $36 {[%emt 0:00:06][%mdl 2048] Against Na5. White has strong initiative. White is more active.} Rb8 {[%emt 0:22:06] [#]} (17... Ne5 $16 18. Rfc1 Bc5) 18. f4 $1 $18 {[%emt 0:03:49] Hoping for e5.} b5 {[%emt 0:00:31]} 19. Bd3 {[%emt 0:00:06][%cal Oa1c1] Strongly threatening Rac1! A strong pair of Bishops.} (19. Bxb5 $2 a6 20. a4 axb5 21. axb5 Qb7 $19) 19... a5 $2 {[%emt 0:04:35]} (19... Qd8 {was worth a try.} 20. Rac1 (20. Bxb5 d3 $17) 20... Na5 21. Bxa5 Qxa5) 20. e5 {[%emt 0:00:43] White is clearly winning.} (20. Bxb5 Bb4 21. e5 Rf8 $19) 20... Rf8 {[%emt 0:01:31]} 21. Rac1 {[%emt 0:02:01]} (21. Bxb5 Bb4 22. Bxc6 Bxd2 $15) 21... Kh8 {[%emt 0:09:43]} (21... Rb6 $142 22. Qc2 (22. Bxb5 Bb4 $18) 22... h6 23. Bxa5 Ra6) 22. Be4 {[%emt 0:01:17]} Rb6 {[%emt 0:01:34]} 23. Qf3 {[%emt 0:00:40]} Nxe5 {[%emt 0:09:24]} 24. Qh3 {[%emt 0:00:17] Weighted Error Value: White=0.08 (flawless) /Black=0.55.  Mistake:       	---       	Black=4      OK:         	White=9     	Black=6      Best:        	White=2     	---        Strong:       	White=1     	---} 1-0